fUST/lending_fUST_20240828
["ID","MTS","AMOUNT","RATE_DAILY","PERIOD"]
[336403563,1724810854690,-500.0,0.00011506,2]
[336403564,1724810854712,-816.43,0.00011506,2]
[336403565,1724810854732,-500.0,0.00011506,2]
[336403566,1724810854753,-578.05444987,0.00011506,2]
[336403567,1724810854775,-500.0,0.00011506,2]
[336403568,1724810854798,-500.0,0.00011506,2]
[336403569,1724810854819,-928.23,0.00011506,2]
[336403570,1724810854840,-500.0,0.00011506,2]
[336403571,1724810854861,-2868.15,0.00011506,2]
[336403572,1724810854889,-500.0,0.00011506,2]
[336403573,1724810854912,-515.2877149,0.00011506,2]
[336403574,1724810854937,-515.54090194,0.00011506,2]
[336403575,1724810854960,-500.0,0.00011506,2]
[336403576,1724810854982,-500.0,0.00011506,2]
[336403577,1724810855005,-7440.28,0.00011506,2]
[336403578,1724810855026,-500.0,0.00011506,2]
[336403579,1724810855049,-500.0,0.00011506,2]
[336403580,1724810855072,-729.33,0.00011506,2]
[336403581,1724810855096,-500.0,0.00011506,2]
[336403582,1724810855121,-500.0,0.00011506,2]
[336403583,1724810855161,-500.0,0.00011506,2]
[336403584,1724810855183,-2929.37334838,0.00011506,2]
[336403585,1724810855205,-637.06,0.00011506,2]
[336403586,1724810855226,-2942.58,0.00011506,2]
[336403587,1724810855248,-504.63453034,0.00011506,2]
[336403588,1724810855272,-506.55275438,0.00011506,2]
[336403589,1724810855295,-500.0,0.00011506,2]
[336403590,1724810855319,-523.45557851,0.00011506,2]
[336403591,1724810855346,-504.60361023,0.00011506,2]
[336403592,1724810855372,-1109.51,0.00011506,2]
[336403593,1724810855396,-3703.05,0.00011506,2]
[336403594,1724810855421,-5075.24,0.00011506,2]
[336403595,1724810855444,-500.0,0.00011506,2]
[336403596,1724810855467,-2860.58,0.00011506,2]
[336403597,1724810855490,-174.62546121,0.00011506,2]
[336403598,1724810855512,-440.03214273,0.00011506,2]
[336403599,1724810855535,-235.806593,0.00011507,2]
[336403600,1724810855555,-1000.0,0.00011521,2]
[336403601,1724810855576,-1000.0,0.00011521,2]
[336403602,1724810855598,-240.01313908,0.00011521,2]
[336403603,1724810855621,-1000.0,0.00011521,2]
[336403604,1724810855642,-1000.0,0.00011521,2]
[336403605,1724810855663,-150.0,0.00011639,2]
[336403606,1724810855684,-1950.33972775,0.0001168,2]
[336403607,1724810855705,-154.74467129,0.00011712,2]
[336403608,1724810855726,-9642.46895643,0.00011727,2]
[336403609,1724810855747,-154.62117811,0.00011731,2]
[336403610,1724810855771,-5423.79518591,0.00011762,2]
[336403611,1724810855794,-261.45273816,0.00011778,2]
[336403612,1724810855817,-718.91,0.00011778,2]
[336403613,1724810855843,-500.0,0.00011779,2]
[336403614,1724810855865,-500.0,0.00011779,2]
[336403615,1724810855890,-500.0,0.00011779,2]
[336403616,1724810855912,-718.91,0.00011779,2]
[336403617,1724810855935,-500.0,0.0001178,2]
[336403618,1724810855958,-501.74726354,0.0001178,2]
[336403619,1724810855982,-678.18,0.0001178,2]
[336403620,1724810856005,-597.4519145,0.0001178,2]
[336403621,1724810856027,-500.0,0.0001178,2]
[336403622,1724810856053,-500.0,0.0001178,2]
[336403623,1724810856075,-504.69562213,0.0001178,2]
[336403624,1724810856098,-505.13940324,0.0001178,2]
[336403625,1724810856121,-500.0,0.0001178,2]
[336403626,1724810856143,-500.0,0.0001178,2]
[336403627,1724810856166,-506.04010127,0.0001178,2]
[336403628,1724810856188,-504.81364103,0.0001178,2]
[336403629,1724810856210,-500.0,0.0001178,2]
[336403630,1724810856429,-235.29427794,0.0001178,2]
[336403631,1724810856463,-500.0,0.0001178,2]
[336403632,1724810856484,-983.27,0.0001178,2]
[336403633,1724810856507,-503.64152287,0.0001178,2]
[336403634,1724810856529,-374.8806259,0.0001178,2]
[336403635,1724810856551,-500.0,0.0001178,2]
[336403636,1724810856572,-500.0,0.0001178,2]
[336403637,1724810856595,-870.81,0.0001178,2]
[336403638,1724810856616,-503.6087173,0.0001178,2]
[336403639,1724810856638,-238.59122016,0.0001178,2]
[336403640,1724810856659,-504.2004185,0.0001178,2]
[336403641,1724810856682,-500.0,0.0001178,2]
[336403642,1724810856706,-500.0,0.0001178,2]
[336403643,1724810856729,-505.79715078,0.0001178,2]
[336403644,1724810856751,-884.23,0.0001178,2]
[336403645,1724810856774,-500.0,0.0001178,2]
[336403646,1724810856806,-1414.92,0.0001178,2]
[336403647,1724810856828,-500.0,0.0001178,2]
[336403648,1724810856850,-500.0,0.0001178,2]
[336403649,1724810856875,-3252.89,0.0001178,2]
[336403650,1724810856901,-3186.09,0.0001178,2]
[336403651,1724810856924,-167.15330694,0.0001178,2]
[336403652,1724810856946,-500.0,0.0001178,2]
[336403653,1724810856969,-500.0,0.0001178,2]
[336403654,1724810856992,-592.39,0.0001178,2]
[336403655,1724810857013,-502.29434108,0.0001178,2]
[336403656,1724810857037,-500.0,0.0001178,2]
[336403657,1724810857063,-12896.74,0.0001178,2]
[336403658,1724810857085,-1308.34,0.0001178,2]
[336403659,1724810857107,-500.0,0.0001178,2]
[336403660,1724810857129,-429.92912281,0.0001178,2]
[336403661,1724810857151,-500.0,0.0001178,2]
[336403662,1724810857175,-602.32598024,0.0001178,2]
[336403664,1724810857196,-500.0,0.0001178,2]
[336403665,1724810857220,-528.5,0.0001178,2]
[336403666,1724810857243,-2448.01,0.0001178,2]
[336403667,1724810857264,-563.44101664,0.0001178,2]
[336403668,1724810857287,-500.0,0.0001178,2]
[336403669,1724810857309,-500.0,0.0001178,2]
[336403670,1724810857333,-3054.69,0.0001178,2]
[336403671,1724810857354,-646.03902595,0.0001178,2]
[336403672,1724810857378,-500.0,0.0001178,2]
[336403673,1724810857400,-424.32862694,0.0001178,2]
[336403674,1724810857422,-816.43,0.0001178,2]
[336403675,1724810857444,-629.1343867,0.0001178,2]
[336403676,1724810857465,-500.0,0.0001178,2]
[336403677,1724810857486,-928.23,0.0001178,2]
[336403678,1724810857508,-411.10631778,0.0001178,2]
[336403679,1724810857531,-2868.15,0.0001178,2]
[336403680,1724810857554,-500.0,0.0001178,2]
[336403681,1724810857576,-500.0,0.0001178,2]
[336403682,1724810857600,-511.68773225,0.0001178,2]
[336403683,1724810857625,-7440.28,0.0001178,2]
[336403684,1724810857647,-500.0,0.0001178,2]
[336403685,1724810857670,-503.57369598,0.0001178,2]
[336403686,1724810857692,-729.33,0.0001178,2]
[336403687,1724810857715,-500.0,0.0001178,2]
[336403688,1724810857736,-504.26473185,0.0001178,2]
[336403689,1724810857757,-500.0,0.0001178,2]
[336403690,1724810857778,-637.06,0.0001178,2]
[336403691,1724810857805,-2942.58,0.0001178,2]
[336403692,1724810857827,-289.39881332,0.0001178,2]
[336403693,1724810857849,-1109.51,0.0001178,2]
[336403694,1724810857872,-3703.05,0.0001178,2]
[336403695,1724810857901,-5075.24,0.0001178,2]
[336403696,1724810857927,-500.0,0.0001178,2]
[336403697,1724810857950,-2860.58,0.0001178,2]
[336403698,1724810857974,-409.3878908,0.00011781,2]
[336403699,1724810857997,-818.7757816,0.00011781,2]
[336403700,1724810858019,-409.3878908,0.00011781,2]
[336403701,1724810858043,-46432.80168478,0.0001184,2]
[336403704,1724810913588,-253.089496,8.693e-05,2]
[336403711,1724810956092,-31.90524792,8.693e-05,2]
[336403714,1724810981099,170.78828848,8.693e-05,2]
[336403715,1724810985132,287.3064636,9.635e-05,2]
[336403717,1724810988919,-1127.4499331,9.635e-05,2]
[336403748,1724811033012,-253.0,9.634e-05,2]
[336403749,1724811033023,-2272.95897892,9.635e-05,2]
[336403750,1724811034313,-7869.953185,9.635e-05,2]
[336403751,1724811035929,-13342.33143938,9.635e-05,2]
[336403752,1724811035941,-154.63660398,0.0001026,2]
[336403753,1724811035951,-250.0,0.00010308,2]
[336403754,1724811035961,-250.0,0.00010337,2]
[336403755,1724811035972,-250.0,0.00010365,2]
[336403756,1724811035982,-250.0,0.00010393,2]
[336403757,1724811035991,-250.0,0.00010421,2]
[336403758,1724811036002,-250.0,0.0001045,2]
[336403759,1724811036012,-250.0,0.00010478,2]
[336403760,1724811036022,-250.0,0.00010506,2]
[336403761,1724811036031,-250.0,0.00010534,2]
[336403762,1724811036042,-210.47717291,0.00010537,2]
[336403763,1724811036052,-250.0,0.00010563,2]
[336403764,1724811036063,-250.0,0.00010591,2]
[336403765,1724811036073,-250.0,0.00010619,2]
[336403767,1724811036083,-250.0,0.00010648,2]
[336403768,1724811036094,-250.0,0.00010676,2]
[336403769,1724811036105,-250.0,0.00010704,2]
[336403770,1724811036115,-250.0,0.00010732,2]
[336403771,1724811036127,-250.0,0.00010761,2]
[336403772,1724811036136,-250.0,0.00010789,2]
[336403773,1724811036146,-250.0,0.00010817,2]
[336403774,1724811036155,-250.0,0.00010845,2]
[336403775,1724811036167,-1027.25939524,0.00010958,2]
[336403776,1724811036186,-500.0,0.00010958,2]
[336403777,1724811036195,-500.0,0.00010958,2]
[336403778,1724811036205,-736.85,0.00010958,2]
[336403779,1724811036214,-94.98308249,0.00010958,2]
[336403780,1724811036227,-1993.94655177,0.00010958,2]
[336403828,1724811039064,-751.40036574,0.00010958,2]
[336403830,1724811039073,-503.82339169,0.00010958,2]
[336403832,1724811039083,-631.36,0.00010958,2]
[336403834,1724811039094,-1179.1,0.00010958,2]
[336403836,1724811039105,-500.0,0.00010958,2]
[336403838,1724811039115,-500.0,0.00010958,2]
[336403840,1724811039124,-500.0,0.00010958,2]
[336403842,1724811039134,-505.1416754,0.00010958,2]
[336403844,1724811039143,-507.06039095,0.00010958,2]
[336403846,1724811039153,-466.98992962,0.00010958,2]
[336403848,1724811039163,-500.0,0.00010958,2]
[336403850,1724811039172,-1090.28,0.00010958,2]
[336403852,1724811039181,-2710.74,0.00010958,2]
[336403853,1724811039190,-521.41444545,0.00010958,2]
[336403855,1724811039200,-505.81789634,0.00010958,2]
[336403856,1724811039209,-2040.01,0.00010958,2]
[336403858,1724811039218,-500.0,0.00010958,2]
[336403860,1724811039228,-500.0,0.00010958,2]
[336403862,1724811039238,-468.82955975,0.00010958,2]
[336403864,1724811039246,-503.36456395,0.00010958,2]
[336403865,1724811039255,-500.0,0.00010958,2]
[336403867,1724811039264,-500.0,0.00010958,2]
[336403869,1724811039273,-500.0,0.00010958,2]
[336403871,1724811039283,-10747.29,0.00010958,2]
[336403872,1724811039292,-500.0,0.00010958,2]
[336403874,1724811039302,-503.55749981,0.00010958,2]
[336403876,1724811039311,-500.0,0.00010958,2]
[336403878,1724811039321,-504.15819514,0.00010958,2]
[336403880,1724811039330,-500.0,0.00010958,2]
[336403882,1724811039339,-249.97279881,0.00010958,2]
[336403884,1724811039348,-500.0,0.00010958,2]
[336403886,1724811039358,-243.59694983,0.00010958,2]
[336403888,1724811039368,-2545.58,0.00010958,2]
[336403890,1724811039379,-500.0,0.00010958,2]
[336403892,1724811039389,-501.75691714,0.00010958,2]
[336403893,1724811039400,-524.89587968,0.00010958,2]
[336403894,1724811039410,-500.0,0.00010958,2]
[336403895,1724811039422,-500.0,0.00010958,2]
[336403896,1724811039432,-552.39303487,0.00010958,2]
[336403897,1724811039442,-500.0,0.00010958,2]
[336403898,1724811039452,-600.09958272,0.00010958,2]
[336403899,1724811039462,-500.0,0.00010958,2]
[336403900,1724811039472,-500.0,0.00010958,2]
[336403901,1724811039483,-500.0,0.00010958,2]
[336403902,1724811039494,-500.0,0.00010958,2]
[336403903,1724811039504,-500.0,0.00010958,2]
[336403904,1724811039515,-505.29023737,0.00010958,2]
[336403905,1724811039525,-500.0,0.00010958,2]
[336403906,1724811039536,-500.0,0.00010958,2]
[336403907,1724811039546,-506.21006225,0.00010958,2]
[336403908,1724811039557,-773.52,0.00010958,2]
[336403909,1724811039568,-500.0,0.00010958,2]
[336403910,1724811039578,-500.0,0.00010958,2]
[336403911,1724811039589,-500.0,0.00010958,2]
[336403912,1724811039598,-500.0,0.00010958,2]
[336403913,1724811039610,-6200.24,0.00010958,2]
[336403914,1724811039620,-505.72332352,0.00010958,2]
[336403915,1724811039631,-501.91682574,0.00010958,2]
[336403916,1724811039640,-500.0,0.00010958,2]
[336403917,1724811039650,-500.0,0.00010958,2]
[336403918,1724811039659,-504.064961,0.00010958,2]
[336403919,1724811039670,-500.0,0.00010958,2]
[336403920,1724811039681,-500.0,0.00010958,2]
[336403921,1724811039691,-500.0,0.00010958,2]
[336403922,1724811039701,-501.37453362,0.00010958,2]
[336403923,1724811039712,-500.0,0.00010958,2]
[336403924,1724811039723,-641.79,0.00010958,2]
[336403925,1724811039735,-500.0,0.00010958,2]
[336403926,1724811039745,-502.13338644,0.00010958,2]
[336403927,1724811039755,-500.0,0.00010958,2]
[336403928,1724811039764,-503.00000001,0.00010958,2]
[336403929,1724811039775,-500.0,0.00010958,2]
[336403930,1724811039784,-500.0,0.00010958,2]
[336403931,1724811039793,-500.88772926,0.00010958,2]
[336403932,1724811039802,-2706.11,0.00010958,2]
[336403933,1724811039812,-500.0,0.00010958,2]
[336403934,1724811039822,-500.0,0.00010958,2]
[336403935,1724811039833,-500.0,0.00010958,2]
[336403936,1724811039843,-500.0,0.00010958,2]
[336403937,1724811039853,-500.0,0.00010958,2]
[336403938,1724811039862,-563.79,0.00010958,2]
[336403939,1724811039871,-504.34855057,0.00010958,2]
[336403940,1724811039880,-500.0,0.00010958,2]
[336403941,1724811039889,-503.45219033,0.00010958,2]
[336403942,1724811039899,-500.0,0.00010958,2]
[336403943,1724811039908,-502.27604871,0.00010958,2]
[336403944,1724811039918,-500.0,0.00010958,2]
[336403945,1724811039929,-500.0,0.00010958,2]
[336403946,1724811039942,-500.0,0.00010958,2]
[336403947,1724811039951,-501.32974642,0.00010958,2]
[336403948,1724811039960,-500.0,0.00010958,2]
[336403949,1724811039971,-500.0,0.00010958,2]
[336403950,1724811039981,-500.0,0.00010958,2]
[336403951,1724811039991,-500.0,0.00010958,2]
[336403952,1724811040000,-500.0,0.0001123,2]
[336403953,1724811040011,-500.0,0.0001123,2]
[336403954,1724811040020,-373.3,0.00011231,2]
[336403955,1724811040029,-500.0,0.00011232,2]
[336403956,1724811040038,-736.85,0.00011232,2]
[336403957,1724811040050,-2840.33,0.00011232,2]
[336403958,1724811040062,-631.36,0.00011232,2]
[336403959,1724811040073,-1179.1,0.00011232,2]
[336403960,1724811040084,-500.0,0.00011232,2]
[336403961,1724811040096,-500.0,0.00011232,2]
[336403962,1724811040107,-542.38439274,0.00011232,2]
[336403963,1724811040119,-500.0,0.00011232,2]
[336403964,1724811040129,-1090.28,0.00011232,2]
[336403965,1724811040140,-2710.74,0.00011232,2]
[336403966,1724811040284,-2040.01,0.00011232,2]
[336403967,1724811040295,-500.0,0.00011232,2]
[336403968,1724811040304,-506.18138611,0.00011232,2]
[336403969,1724811040314,-10747.29,0.00011232,2]
[336403970,1724811040323,-321.68037138,0.00011232,2]
[336403971,1724811040333,-500.0,0.00011232,2]
[336403972,1724811040342,-506.02792091,0.00011232,2]
[336403973,1724811040352,-2545.58,0.00011232,2]
[336403974,1724811040362,-500.0,0.00011232,2]
[336403976,1724811040371,-629.88036882,0.00011232,2]
[336403977,1724811040380,-500.0,0.00011232,2]
[336403978,1724811040390,-500.0,0.00011232,2]
[336403979,1724811040399,-539.08323609,0.00011232,2]
[336403980,1724811040409,-500.0,0.00011232,2]
[336403981,1724811040421,-773.52,0.00011232,2]
[336403982,1724811040431,-604.02199248,0.00011232,2]
[336403983,1724811040440,-500.0,0.00011232,2]
[336403984,1724811040450,-500.0,0.00011232,2]
[336403985,1724811040460,-500.0,0.00011232,2]
[336403986,1724811040470,-6200.24,0.00011232,2]
[336403987,1724811040480,-380.1924918,0.00011232,2]
[336403988,1724811040490,-295.62634926,0.00011232,2]
[336403989,1724811040500,-504.98777393,0.00011232,2]
[336403990,1724811040510,-641.79,0.00011232,2]
[336403991,1724811040521,-500.0,0.00011232,2]
[336403992,1724811040530,-502.77020799,0.00011232,2]
[336403993,1724811040540,-500.0,0.00011232,2]
[336403994,1724811040549,-159.71924606,0.00011232,2]
[336403995,1724811040558,-2706.11,0.00011232,2]
[336403996,1724811040568,-500.0,0.00011232,2]
[336403997,1724811040579,-500.0,0.00011232,2]
[336403999,1724811040588,-563.79,0.00011232,2]
[336404000,1724811040597,-500.0,0.00011232,2]
[336404002,1724811040607,-404.8039201,0.00011233,2]
[336404004,1724811040616,-8852.09163784,0.00011409,2]
[336404005,1724811040625,-535.33512,0.00011409,2]
[336404006,1724811040635,-8852.09163784,0.00011409,2]
[336404007,1724811040644,-154.63660398,0.00011409,2]
[336404008,1724811040653,-500.0,0.00011506,2]
[336404009,1724811040664,-736.85,0.00011506,2]
[336404010,1724811040674,-2840.33,0.00011506,2]
[336404011,1724811040684,-631.36,0.00011506,2]
[336404012,1724811040694,-1179.1,0.00011506,2]
[336404013,1724811040704,-500.0,0.00011506,2]
[336404014,1724811040713,-186.29277964,0.00011506,2]
[336404015,1724811040724,-500.0,0.00011506,2]
[336404016,1724811040733,-1090.28,0.00011506,2]
[336404017,1724811040743,-2710.74,0.00011506,2]
[336404018,1724811040752,-2040.01,0.00011506,2]
[336404020,1724811040762,-500.0,0.00011506,2]
[336404022,1724811040773,-10747.29,0.00011506,2]
[336404024,1724811040783,-175.06826955,0.00011506,2]
[336404027,1724811040793,-2545.58,0.00011506,2]
[336404029,1724811040803,-500.0,0.00011506,2]
[336404031,1724811040813,-505.19511547,0.00011506,2]
[336404033,1724811040825,-773.52,0.00011506,2]
[336404035,1724811040835,-505.08217843,0.00011506,2]
[336404037,1724811040845,-500.0,0.00011506,2]
[336404039,1724811040855,-500.0,0.00011506,2]
[336404041,1724811040864,-6200.24,0.00011506,2]
[336404043,1724811040874,-641.79,0.00011506,2]
[336404045,1724811040884,-500.0,0.00011506,2]
[336404047,1724811040894,-500.0,0.00011506,2]
[336404049,1724811040904,-2706.11,0.00011506,2]
[336404051,1724811040914,-500.0,0.00011506,2]
[336404053,1724811040924,-501.95712292,0.00011506,2]
[336404055,1724811040938,-563.79,0.00011506,2]
[336404057,1724811040948,-502.64264311,0.00011506,2]
[336404059,1724811040958,-308.89734662,0.00011679,2]
[336404061,1724811040968,-12652.49170592,0.00011712,2]
[336404063,1724811040979,-3856.98758258,0.00011747,2]
[336404065,1724811040989,-500.0,0.00011779,2]
[336404067,1724811040999,-500.0,0.00011779,2]
[336404070,1724811041011,-2390.12,0.00011779,2]
[336404072,1724811041020,-500.0,0.00011779,2]
[336404074,1724811041031,-500.77128868,0.00011779,2]
[336404076,1724811041040,-500.0,0.00011779,2]
[336404078,1724811041051,-819.39,0.00011779,2]
[336404080,1724811041061,-511.20578224,0.00011779,2]
[336404082,1724811041071,-500.0,0.00011779,2]
[336404084,1724811041081,-500.0,0.0001178,2]
[336404086,1724811041092,-736.85,0.0001178,2]
[336404088,1724811041101,-2840.33,0.0001178,2]
[336404090,1724811041113,-631.36,0.0001178,2]
[336404092,1724811041123,-1179.1,0.0001178,2]
[336404094,1724811041133,-500.0,0.0001178,2]
[336404097,1724811041142,-500.0,0.0001178,2]
[336404099,1724811041152,-1090.28,0.0001178,2]
[336404101,1724811041163,-2710.74,0.0001178,2]
[336404104,1724811041173,-2040.01,0.0001178,2]
[336404106,1724811041182,-500.0,0.0001178,2]
[336404108,1724811041192,-10747.29,0.0001178,2]
[336404110,1724811041204,-2545.58,0.0001178,2]
[336404111,1724811041214,-500.0,0.0001178,2]
[336404113,1724811041224,-773.52,0.0001178,2]
[336404115,1724811041234,-500.0,0.0001178,2]
[336404117,1724811041245,-500.0,0.0001178,2]
[336404118,1724811041255,-6200.24,0.0001178,2]
[336404119,1724811041264,-641.79,0.0001178,2]
[336404120,1724811041274,-500.0,0.0001178,2]
[336404121,1724811041284,-635.83566282,0.0001178,2]
[336404122,1724811041295,-2706.11,0.0001178,2]
[336404123,1724811041304,-504.61355716,0.0001178,2]
[336404124,1724811041314,-563.79,0.0001178,2]
[336404125,1724811041324,-57303.47933022,0.0001184,2]
[336404126,1724811041335,-32653.19223922,0.00011848,2]
[336404127,1724811041344,-500.0,0.00011873,2]
[336404128,1724811041356,-199.50459183,0.00011873,2]
[336404129,1724811041366,-501.05260222,0.00011873,2]
[336404130,1724811041376,-335.66664735,0.00011894,2]
[336404131,1724811041387,-210.43217369,0.00011894,2]
[336404132,1724811041398,-549.44,0.000119,2]
[336404133,1724811041408,-549.44,0.000119,2]
[336404134,1724811041421,-709.749602,0.000119,2]
[336404135,1724811041430,-709.749602,0.000119,2]
[336404136,1724811041440,-811.296743,0.000119,2]
[336404137,1724811041451,-811.296743,0.000119,2]
[336404138,1724811041461,-1857.383039,0.000119,2]
[336404139,1724811041470,-1857.383039,0.000119,2]
[336404140,1724811041480,-151.0,0.000119,2]
[336404141,1724811041491,-151.0,0.000119,2]
[336404142,1724811041502,-6778.166501,0.000119,2]
[336404143,1724811041512,-6778.166501,0.000119,2]
[336404144,1724811041524,-151.0,0.000119,2]
[336404145,1724811041534,-1226.115566,0.000119,2]
[336404146,1724811041545,-151.0,0.000119,2]
[336404147,1724811041555,-1226.115566,0.000119,2]
[336404148,1724811041566,-151.0,0.000119,2]
[336404149,1724811041576,-151.0,0.000119,2]
[336404150,1724811041586,-151.0,0.000119,2]
[336404151,1724811041597,-943.135433,0.000119,2]
[336404152,1724811041607,-151.0,0.000119,2]
[336404153,1724811041618,-943.135433,0.000119,2]
[336404154,1724811041628,-887.344311,0.000119,2]
[336404155,1724811041639,-887.344311,0.000119,2]
[336404156,1724811041650,-151.0,0.000119,2]
[336404157,1724811041660,-151.0,0.000119,2]
[336404158,1724811041670,-2715.06569498,0.00011999,2]
[336404159,1724811041681,-500.0,0.00012053,2]
[336404160,1724811041691,-2390.12,0.00012053,2]
[336404161,1724811041700,-335.83928284,0.00012053,2]
[336404162,1724811041709,-500.0,0.00012053,2]
[336404163,1724811041719,-819.39,0.00012053,2]
[336404164,1724811041728,-410.11641657,0.00012053,2]
[336404165,1724811041737,-500.0,0.00012054,2]
[336404166,1724811041746,-517.06307065,0.00012054,2]
[336404167,1724811041756,-500.0,0.00012054,2]
[336404168,1724811041766,-500.0,0.00012054,2]
[336404169,1724811041776,-500.0,0.00012054,2]
[336404170,1724811041786,-870.81,0.00012054,2]
[336404171,1724811041797,-190.59094043,0.00012054,2]
[336404172,1724811041808,-500.0,0.00012054,2]
[336404173,1724811041820,-500.0,0.00012054,2]
[336404174,1724811041830,-589.45398109,0.00012054,2]
[336404175,1724811041840,-379.82350217,0.00012054,2]
[336404176,1724811041850,-500.0,0.00012054,2]
[336404177,1724811041862,-500.0,0.00012054,2]
[336404178,1724811041872,-500.0,0.00012054,2]
[336404179,1724811041882,-500.0,0.00012054,2]
[336404180,1724811041894,-500.0,0.00012054,2]
[336404181,1724811041905,-500.0,0.00012054,2]
[336404182,1724811041914,-816.43,0.00012054,2]
[336404183,1724811041926,-493.08299564,0.00012054,2]
[336404184,1724811041940,-500.0,0.00012054,2]
[336404185,1724811041951,-500.0,0.00012054,2]
[336404186,1724811041963,-1109.51,0.00012054,2]
[336404187,1724811041975,-3703.05,0.00012054,2]
[336404188,1724811041985,-5075.24,0.00012054,2]
[336404189,1724811041996,-500.0,0.00012054,2]
[336404190,1724811042006,-2860.58,0.00012054,2]
[336404191,1724811042017,-500.0,0.00012054,2]
[336404192,1724811042029,-736.85,0.00012054,2]
[336404193,1724811042039,-2840.33,0.00012054,2]
[336404194,1724811042048,-631.36,0.00012054,2]
[336404195,1724811042059,-1179.1,0.00012054,2]
[336404196,1724811042069,-500.0,0.00012054,2]
[336404197,1724811042079,-500.0,0.00012054,2]
[336404198,1724811042089,-1090.28,0.00012054,2]
[336404199,1724811042099,-2710.74,0.00012054,2]
[336404200,1724811042108,-2040.01,0.00012054,2]
[336404201,1724811042117,-500.0,0.00012054,2]
[336404202,1724811042126,-10747.29,0.00012054,2]
[336404203,1724811042136,-2545.58,0.00012054,2]
[336404204,1724811042147,-514.68355027,0.00012054,2]
[336404205,1724811042157,-500.0,0.00012054,2]
[336404206,1724811042166,-500.0,0.00012054,2]
[336404207,1724811042176,-6200.24,0.00012054,2]
[336404208,1724811042185,-641.79,0.00012054,2]
[336404209,1724811042195,-500.0,0.00012054,2]
[336404210,1724811042204,-2706.11,0.00012054,2]
[336404211,1724811042215,-563.79,0.00012054,2]
[336404212,1724811042226,-2611.26711056,0.0001212,2]
[336404213,1724811042236,-2611.26711056,0.0001212,2]
[336404214,1724811042246,-899.64193172,0.0001212,2]
[336404215,1724811042256,-812.13034557,0.00012163,2]
[336404216,1724811042267,-5694.37000244,0.00012235,2]
[336404217,1724811042278,-150.0,0.00012239,2]
[336404218,1724811042288,-3856.98758257,0.00012278,2]
[336404219,1724811042300,-500.0,0.00012327,2]
[336404220,1724811042310,-2390.12,0.00012327,2]
[336404221,1724811042319,-500.0,0.00012327,2]
[336404222,1724811042328,-819.39,0.00012327,2]
[336404223,1724811042337,-12976.35681957,0.00012328,5]
[336404224,1724811042348,-508.25935746,0.00012328,2]
[336404225,1724811042360,-500.0,0.00012328,2]
[336404226,1724811042369,-500.0,0.00012328,2]
[336404227,1724811042379,-500.0,0.00012328,2]
[336404228,1724811042389,-870.81,0.00012328,2]
[336404229,1724811042399,-500.0,0.00012328,2]
[336404230,1724811042409,-202.29121526,0.00012328,2]
[336404231,1724811042422,-500.0,0.00012328,2]
[336404232,1724811042435,-500.0,0.00012328,2]
[336404233,1724811042444,-500.0,0.00012328,2]
[336404234,1724811042453,-500.0,0.00012328,2]
[336404235,1724811042462,-645.66529747,0.00012328,2]
[336404236,1724811042471,-500.0,0.00012328,2]
[336404237,1724811042480,-816.43,0.00012328,2]